fUSD/lending_fUSD_20251102
["ID","MTS","AMOUNT","RATE_DAILY","PERIOD"]
[392851097,1762058027196,1092.0,0.00014606,2]
[392851099,1762058028511,893.21759391,0.00014763,2]
[392851101,1762058031860,1092.0,0.00014112,2]
[392851105,1762058036761,1092.0,0.00014112,2]
[392851108,1762058038054,420.1439,0.00014584,2]
[392851112,1762058041583,1092.0,0.00014112,2]
[392851117,1762058046497,1092.0,0.00014112,2]
[392851119,1762058051389,945.51709163,0.00014112,2]
[392851120,1762058051413,146.48290837,0.00014112,2]
[392851129,1762058081160,217.50414476,0.00014765,2]
[392851136,1762058101223,300.0,0.00014765,2]
[392851137,1762058101267,300.0,0.00014765,2]
[392851138,1762058101306,1200.0,0.00014765,2]
[392851144,1762058117359,316.54,0.00014,2]
[392851168,1762058162157,150.0,0.00014765,2]
[392851182,1762058200772,659.61046025,0.00014666,2]
[392851183,1762058200966,168.0,0.00014423,2]
[392851187,1762058209460,250.0,0.0001401,2]
[392851200,1762058228601,496.47127164,0.00014766,2]
[392851201,1762058229600,305.32560374,0.00014766,2]
[392851202,1762058230853,620.0,0.00014766,2]
[392851203,1762058233216,262.55887276,0.00014766,2]
[392851205,1762058235502,500.0,0.0001202,2]
[392851206,1762058236481,178.26,0.00011196,2]
[392851207,1762058236878,239.84119403,0.00014766,2]
[392851208,1762058238290,-466.78161868,0.00014766,2]
[392851209,1762058238351,-10000.01,0.00014766,2]
[392851210,1762058238367,-10000.01,0.00014766,2]
[392851211,1762058240705,500.0,0.0001202,2]
[392851212,1762058240820,-10000.01,0.00014766,2]
[392851213,1762058240929,-10000.01,0.00014766,2]
[392851214,1762058241038,-10000.01,0.00014766,2]
[392851215,1762058241078,500.0,0.0001202,2]
[392851216,1762058241200,-10000.01,0.00014766,2]
[392851217,1762058241294,-10000.01,0.00014766,2]
[392851218,1762058241381,500.0,0.0001202,2]
[392851219,1762058241413,-10000.01,0.00014766,2]
[392851220,1762058241555,-10000.01,0.00014766,2]
[392851221,1762058241711,500.0,0.00012012,2]
[392851222,1762058242101,500.0,0.00012012,2]
[392851223,1762058242764,-10000.01,0.00014766,2]
[392851224,1762058243105,500.0,0.0001202,2]
[392851226,1762058249460,508.74569467,0.0001202,2]
[392851227,1762058250312,500.0,0.0001202,2]
[392851228,1762058250714,500.0,0.00012012,2]
[392851231,1762058252064,5507.85,0.00013994,2]
[392851236,1762058275565,500.0,0.00013356,2]
[392851238,1762058279550,-1651.0609,0.00014666,2]
[392851239,1762058279584,-500.0,0.00014726,2]
[392851240,1762058279614,-1425.0,0.00014749,2]
[392851241,1762058279645,-1200.0,0.00014765,2]
[392851242,1762058279674,-151.0,0.00014766,2]
[392851256,1762058308311,4676.74774145,0.000145,2]
[392851258,1762058320539,500.0,0.00013356,2]
[392851259,1762058320586,500.0,0.00013356,2]
[392851262,1762058326961,220.46289558,0.00014427,2]
[392851265,1762058332986,1594.38,0.00014016,2]
[392851293,1762058392009,221.66766337,0.00014526,2]
[392851295,1762058408011,10000.01,0.00014,2]
[392851296,1762058408039,6422.6,0.00014,2]
[392851297,1762058409905,3577.41,0.00014,2]
[392851298,1762058409930,10000.01,0.00014,2]
[392851299,1762058409956,2845.19,0.00014,2]
[392851300,1762058411779,7154.82,0.00014,2]
[392851301,1762058411807,9267.79,0.00014,2]
[392851302,1762058413830,732.22,0.00014,2]
[392851303,1762058413854,10000.01,0.00014,2]
[392851304,1762058413878,5690.38,0.00014,2]
[392851310,1762058425720,609.0,0.00014441,2]
[392851316,1762058448139,166.66,0.00013699,2]
[392851317,1762058448591,166.66,0.00013888,2]
[392851318,1762058448647,166.66,0.00014077,2]
[392851319,1762058448718,166.66,0.00014266,2]
[392851320,1762058448926,166.66,0.00014455,2]
[392851324,1762058450919,330.0,0.00014265,2]
[392851326,1762058461540,330.0,0.00014138,2]
[392851328,1762058471704,330.0,0.00014434,2]
[392851330,1762058475275,330.0,0.00014365,2]
[392851331,1762058481207,500.0,0.00013356,2]
[392851333,1762058483764,1000.0,0.00013699,2]
[392851345,1762058509954,-166.66,0.00014644,2]
[392851346,1762058509985,-609.0,0.0001466,2]
[392851347,1762058510014,-300.0,0.00014665,2]
[392851348,1762058510046,-1000.0,0.00014666,2]
[392851349,1762058510076,-2500.0,0.00014666,2]
[392851350,1762058510308,-933.38136986,0.00014666,2]
[392851351,1762058510340,-1767.56807148,0.00014666,2]
[392851352,1762058510373,-1767.56807139,0.00014692,2]
[392851353,1762058510666,-330.0,0.00014712,2]
[392851354,1762058510956,-1767.56807139,0.00014718,2]
[392851355,1762058510985,-500.0,0.00014726,2]
[392851356,1762058511016,-1767.56807139,0.00014744,2]
[392851357,1762058511048,-500.0,0.00014765,2]
[392851358,1762058511078,-300.0,0.00014765,2]
[392851359,1762058511107,-150.0,0.00014765,2]
[392851360,1762058511182,-300.0,0.00014765,2]
[392851361,1762058511216,-1200.0,0.00014765,2]
[392851362,1762058511247,-500.0,0.00014765,2]
[392851367,1762058521387,300.0,0.00014765,2]
[392851368,1762058522004,150.0,0.00014765,2]
[392851371,1762058524937,156.37,6.97e-05,2]
[392851372,1762058525132,156.37,0.00010456,2]
[392851373,1762058525334,156.37,0.00013941,2]
[392851381,1762058553268,200.0,0.00013931,2]
[392851382,1762058554651,-496.47127164,0.00014766,2]
[392851383,1762058554684,-151.0,0.00014766,2]
[392851384,1762058554718,-620.0,0.00014766,2]
[392851385,1762058554752,-239.84119403,0.00014766,2]
[392851387,1762058560348,957.0,0.00014765,2]
[392851389,1762058573223,-4182.68742227,0.00014766,2]
[392851390,1762058573251,-10000.01,0.00014766,2]
[392851391,1762058573314,-10000.01,0.00014766,2]
[392851392,1762058573458,-10000.01,0.00014766,2]
[392851393,1762058575751,-10000.01,0.00014766,2]
[392851394,1762058575938,-10000.01,0.00014766,2]
[392851395,1762058576077,-10000.01,0.00014766,2]
[392851396,1762058578807,-10000.01,0.00014766,2]
[392851397,1762058578964,-10000.01,0.00014766,2]
[392851398,1762058579073,-10000.01,0.00014766,2]
[392851399,1762058583727,-500.0,0.00014765,2]
[392851401,1762058586899,250.0,0.00014765,2]
[392851403,1762058630652,-372.77087372,0.00014666,2]
[392851407,1762058662715,899.6748,0.00014666,2]
[392851413,1762058686889,150.0,0.00013877,2]
[392851414,1762058687631,162.62,0.00013946,2]
[392851415,1762058695973,500.0,0.00013356,2]
[392851416,1762058701289,1200.0,0.00014765,2]
[392851417,1762058701327,300.0,0.00014765,2]
[392851418,1762058702106,150.0,0.00014765,2]
[392851419,1762058704283,300.0,0.00014765,2]
[392851420,1762058715422,500.0,0.00014765,2]
[392851421,1762058721514,5092.17345256,0.00013937,2]
[392851422,1762058721539,1349.91654744,0.00013937,2]
[392851423,1762058729299,150.0,0.00013488,2]
[392851424,1762058747305,500.0,0.00014765,2]
[392851425,1762058761530,300.0,0.00014765,2]
[392851426,1762058778618,1000.0,0.000147,2]
[392851427,1762058797056,2348.5081695,0.0001476,2]
[392851428,1762058825057,620.0,0.00014766,2]
[392851429,1762058828058,230.45702543,0.00014766,2]
[392851430,1762058839660,3501.12825763,0.0001476,2]
[392851431,1762058839683,4937.64999927,0.0001476,2]
[392851432,1762058841750,496.47127164,0.00014766,2]
[392851433,1762058849684,151.0,0.00014766,2]
[392851437,1762058859352,1200.0,0.00014765,2]
[392851442,1762058881632,300.0,0.00014765,2]
[392851443,1762058882012,150.0,0.00014765,2]
[392851447,1762058888933,893.21759391,0.00014698,2]
[392851459,1762058907511,1294.76,0.00014001,2]
[392851464,1762058928033,576.91113518,0.00014666,2]
[392851465,1762058928059,483.62970769,0.00014666,2]
[392851466,1762058932989,1060.54084283,0.00014692,2]
[392851467,1762058937984,1060.54084283,0.00014718,2]
[392851469,1762058942978,1060.54084283,0.00014744,2]
[392851470,1762058991802,997.74,0.00013935,2]
[392851471,1762059001162,300.0,0.00014765,2]
[392851472,1762059001502,300.0,0.00014765,2]
[392851473,1762059001543,1200.0,0.00014765,2]
[392851475,1762059008329,221.66766337,0.00014733,2]
[392851476,1762059011138,3315.35010045,0.0001476,2]
[392851477,1762059011163,10000.01,0.0001476,2]
[392851478,1762059011189,2396.59630325,0.0001476,2]
[392851480,1762059017428,902.06030624,0.000147,2]
[392851487,1762059031735,-33353.60356877,0.00014766,2]
[392851488,1762059031948,-264.68807663,0.00014766,2]
[392851505,1762059039792,-426.06689976,0.00014766,2]
[392851521,1762059042947,-547.71973674,0.00014766,2]
[392851522,1762059043002,-452.9104971,0.00014766,2]
[392851524,1762059045900,-1127.3,0.00014766,2]
[392851525,1762059046061,-630.5611002,0.00014766,2]
[392851526,1762059046071,-5532.5,0.00014766,2]
[392851529,1762059062071,150.0,0.00014765,2]
[392851534,1762059067392,908.0,0.00014511,2]
[392851535,1762059078707,2889.49,0.00013919,2]
[392851537,1762059090487,500.0,0.00014765,2]
[392851538,1762059090532,610.21801512,0.00014765,2]
[392851539,1762059096526,1643.64537539,0.00014759,2]
[392851540,1762059096549,377.51265811,0.00014759,2]
[392851541,1762059121357,300.0,0.00014765,2]
[392851544,1762059127888,202.48781685,0.00014766,2]
[392851545,1762059128578,151.0,0.00014766,2]
[392851546,1762059129200,151.0,0.00014766,2]
[392851547,1762059129808,151.0,0.00014766,2]
[392851548,1762059130843,500.0,0.00014766,2]
[392851549,1762059131230,620.0,0.00014766,2]
[392851550,1762059131441,500.0,0.00014766,2]
[392851551,1762059134174,7047.00952504,0.00014254,2]
[392851552,1762059134198,8287.75174936,0.00014254,2]
[392851553,1762059139820,-2207.79999808,0.00014766,2]
[392851557,1762059143728,-496.47127164,0.00014766,2]
[392851558,1762059143772,-9007.06745672,0.00014766,2]
[392851559,1762059145154,-10000.01,0.00014766,2]
[392851560,1762059146575,-10000.01,0.00014766,2]
[392851561,1762059146822,-10000.01,0.00014766,2]
[392851562,1762059147003,-10000.01,0.00014766,2]
[392851563,1762059147932,-10000.01,0.00014766,2]
[392851564,1762059148571,-10000.01,0.00014766,2]
[392851565,1762059148838,-10000.01,0.00014766,2]
[392851566,1762059148981,-10000.01,0.00014766,2]
[392851567,1762059149125,-10000.01,0.00014766,2]
[392851655,1762059197222,2000.0,0.00014,2]
[392851656,1762059204160,200.92506264,0.0001403,2]
[392851657,1762059234245,610.0,0.00013877,2]
[392851658,1762059359043,1845.6,0.00013855,2]
[392851660,1762059412413,4718.4,0.0001384,2]
[392851661,1762059450939,-159.91305525,0.00014438,2]
[392851662,1762059450962,-250.0,0.00014521,2]
[392851663,1762059450987,-636.32450577,0.00014566,2]
[392851664,1762059451008,-159.91305525,0.00014603,2]
[392851665,1762059451031,-636.32450569,0.00014603,2]
[392851666,1762059451055,-636.32450569,0.0001464,2]
[392851667,1762059451078,-235.0,0.00014651,2]
[392851668,1762059451101,-300.0,0.00014664,2]
[392851669,1762059451124,-1200.0,0.00014664,2]
[392851670,1762059451146,-300.0,0.00014664,2]
[392851671,1762059451168,-489.68414389,0.00014665,2]
[392851672,1762059451193,-500.0,0.00014665,2]
[392851673,1762059451218,-500.0,0.00014665,2]
[392851674,1762059451244,-239.27659225,0.00014665,2]
[392851675,1762059451270,-500.0,0.00014665,2]
[392851676,1762059451294,-500.0,0.00014665,2]
[392851677,1762059451319,-500.0,0.00014665,2]
[392851678,1762059451345,-500.0,0.00014665,2]
[392851679,1762059451368,-150.0,0.00014665,2]
[392851680,1762059451391,-234.1905,0.00014666,2]
[392851681,1762059451414,-500.0,0.00014666,2]
[392851682,1762059451439,-14517.04913621,0.00014666,2]
[392851683,1762059536338,229.0652,0.00014338,2]
[392851684,1762059541187,300.0,0.00014665,2]
[392851685,1762059561192,1374.0,0.000146,2]
[392851688,1762059601353,300.0,0.00014665,2]
[392851689,1762059601392,1200.0,0.00014665,2]
[392851690,1762059601915,150.0,0.00014665,2]
[392851691,1762059607207,6446.9448,0.00014656,2]
[392851692,1762059607233,6558.3452,0.00014656,2]
[392851693,1762059616090,1040.36,0.0001385,2]
[392851694,1762059617679,526.60250163,0.00014665,2]
[392851695,1762059652866,1000.0,0.0001385,2]
[392851696,1762059654093,500.0,0.00014665,2]
[392851697,1762059659343,374.70229837,0.00014665,2]
[392851698,1762059659368,9288.92557804,0.00014665,2]
[392851699,1762059661231,300.0,0.00014665,2]
[392851702,1762059669795,411.08442196,0.00014516,2]
[392851703,1762059669823,694.90185038,0.00014516,2]
[392851706,1762059711390,924.89496,0.0001466,2]
[392851707,1762059711459,924.89497,0.0001463,2]
[392851709,1762059720625,164.9111349,0.00014666,2]
[392851710,1762059721394,300.0,0.00014665,2]
[392851711,1762059724875,620.0,0.00014666,2]
[392851712,1762059725259,509.67990508,0.00014666,2]
[392851713,1762059730531,151.0,0.00014666,2]
[392851714,1762059730668,169.56617779,0.00014666,2]
[392851715,1762059731251,151.0,0.00014666,2]
[392851716,1762059731398,500.0,0.00014666,2]
[392851717,1762059731842,151.0,0.00014666,2]
[392851718,1762059731990,500.0,0.00014666,2]
[392851719,1762059732483,151.0,0.00014666,2]
[392851720,1762059732588,500.0,0.00014666,2]
[392851721,1762059733086,151.0,0.00014666,2]
[392851722,1762059733267,240.41932263,0.00014666,2]
[392851723,1762059733687,151.0,0.00014666,2]
[392851724,1762059734233,282.88702813,0.00014115,2]
[392851725,1762059734313,151.0,0.00014666,2]
[392851726,1762059734920,151.0,0.00014666,2]
[392851727,1762059735527,151.0,0.00014666,2]
[392851728,1762059736130,151.0,0.00014666,2]
[392851729,1762059736747,151.0,0.00014666,2]
[392851730,1762059737370,500.0,0.00013356,2]
[392851731,1762059740123,496.47127164,0.00014666,2]
[392851732,1762059744193,500.0,0.00014665,2]
[392851733,1762059745139,157.42867594,0.00014573,2]
[392851734,1762059751281,151.0,0.00014666,2]
[392851735,1762059757715,201.95470351,0.00014666,2]
[392851736,1762059757741,2.5873649,0.00014666,2]
[392851737,1762059759900,893.21759391,0.0001448,2]
[392851738,1762059760160,221.66766337,0.0001443,2]
[392851739,1762059760594,4425.23,0.00014666,2]
[392851740,1762059762975,451.6941,0.00014566,2]
[392851741,1762059776279,500.0,0.00014665,2]
[392851742,1762059779573,500.0,0.00013356,2]
[392851743,1762059782727,150.0,0.00014665,2]
[392851744,1762059784974,336.02,0.00013857,2]
[392851745,1762059785176,336.02,0.00014627,2]
[392851746,1762059815940,150.0,0.00014553,2]
[392851747,1762059816584,760.22,0.00013861,2]
[392851751,1762059841254,300.0,0.00014665,2]
[392851752,1762059858262,3207.4620789,0.000149,5]
[392851758,1762059899119,973.35327782,0.00014496,2]
[392851759,1762059899144,190.64672218,0.00014496,2]
[392851761,1762059901213,300.0,0.00014665,2]
[392851762,1762059901252,1200.0,0.00014665,2]
[392851763,1762059901292,300.0,0.00014665,2]
[392851764,1762059904225,1164.0,0.00014395,2]
[392851765,1762059908329,150.0,0.00013488,2]
[392851766,1762059908394,150.0,0.00013488,2]
[392851767,1762059908438,150.0,0.00013624,2]
[392851768,1762059908502,150.0,0.0001376,2]
[392851769,1762059908568,150.0,0.00013896,2]
[392851770,1762059908631,150.0,0.00014033,2]
[392851771,1762059908712,150.0,0.00014169,2]
[392851772,1762059908786,150.0,0.00014305,2]
[392851773,1762059908857,150.0,0.00014441,2]
[392851774,1762059908919,150.0,0.00014578,2]
[392851775,1762059909158,1164.0,0.00014526,2]
[392851776,1762059909275,150.0,0.00013488,2]
[392851777,1762059909344,150.0,0.00013539,2]
[392851778,1762059909411,150.0,0.00013591,2]
[392851779,1762059909493,150.0,0.00013643,2]
[392851780,1762059909549,150.0,0.00013694,2]
[392851781,1762059909626,150.0,0.00013746,2]
[392851782,1762059909692,150.0,0.00013798,2]
[392851783,1762059909766,150.0,0.00013849,2]
[392851784,1762059909848,150.0,0.00013901,2]
[392851785,1762059909921,150.0,0.00013953,2]
[392851786,1762059909980,150.0,0.00014004,2]
[392851787,1762059910051,150.0,0.00014056,2]
[392851788,1762059910124,150.0,0.00014108,2]
[392851789,1762059910201,150.0,0.00014159,2]
[392851790,1762059910260,150.0,0.00014211,2]
[392851791,1762059910333,150.0,0.00014263,2]
[392851792,1762059910401,150.0,0.00014315,2]
[392851793,1762059910484,150.0,0.00014366,2]
[392851794,1762059910550,150.0,0.00014418,2]
[392851795,1762059910858,150.0,0.0001447,2]
[392851796,1762059910897,150.0,0.00014521,2]
[392851797,1762059910937,150.0,0.00014573,2]
[392851798,1762059910976,150.0,0.00014625,2]
[392851799,1762059911489,150.0,0.00013488,2]
[392851800,1762059911537,150.0,0.00013737,2]
[392851801,1762059911579,150.0,0.00013613,2]
[392851802,1762059911634,150.0,0.00013862,2]
[392851803,1762059911674,131.36327782,0.00013987,2]
[392851804,1762059911700,18.63672218,0.00013987,2]
[392851805,1762059911752,150.0,0.00014112,2]
[392851806,1762059911790,150.0,0.00014237,2]
[392851807,1762059911831,150.0,0.00014362,2]
[392851808,1762059911902,150.0,0.00014487,2]
[392851809,1762059911967,150.0,0.00014612,2]
[392851810,1762059919942,150.0,0.00013488,2]
[392851811,1762059920197,150.0,0.00013488,2]
[392851812,1762059920239,150.0,0.00013588,2]
[392851813,1762059920281,150.0,0.00013787,2]
[392851814,1762059920318,150.0,0.00013687,2]
[392851815,1762059920355,150.0,0.00013887,2]
[392851816,1762059920423,150.0,0.00013987,2]
[392851817,1762059920494,150.0,0.00014087,2]
[392851818,1762059920552,150.0,0.00014187,2]
[392851819,1762059920643,150.0,0.00014287,2]
[392851820,1762059920705,150.0,0.00014387,2]
[392851821,1762059920766,150.0,0.00014487,2]
[392851822,1762059920840,150.0,0.00014587,2]
[392851823,1762059923798,500.0,0.00013849,2]
[392851824,1762059923991,2625.04877102,0.00014566,2]
[392851825,1762059926791,167.76886141,0.00013488,2]
[392851826,1762059926829,150.0,0.00013488,2]
[392851827,1762059926869,150.0,0.00013987,2]
[392851828,1762059926954,150.0,0.00014487,2]
[392851829,1762059927250,155.22205847,0.00013488,2]
[392851830,1762059927285,152.30958543,0.00013488,2]
[392851831,1762059928293,150.0,0.00013488,2]
[392851832,1762059928372,150.0,0.00013787,2]
[392851833,1762059928446,150.0,0.00014087,2]
[392851834,1762059928509,150.0,0.00014387,2]
[392851835,1762059928948,2625.04877102,0.00014603,2]
[392851836,1762059929024,5.97523047,0.00013488,2]
[392851837,1762059929049,144.02476953,0.00013488,2]
[392851838,1762059929085,150.0,0.00014237,2]
[392851839,1762059932503,150.0,0.00013488,2]
[392851840,1762059932570,150.0,0.00013862,2]
[392851841,1762059932654,150.0,0.00014237,2]
[392851842,1762059932712,150.0,0.00014612,2]
[392851843,1762059934172,2625.04877102,0.0001464,2]
[392851844,1762059936405,150.0,0.00013488,2]
[392851845,1762059936467,150.0,0.00013862,2]
[392851846,1762059936539,150.0,0.00014237,2]
[392851847,1762059936611,150.0,0.00014612,2]
[392851848,1762059936768,150.0,0.00013488,2]
[392851849,1762059936845,150.0,0.00013595,2]
[392851850,1762059936928,150.0,0.00013702,2]
[392851851,1762059936980,150.0,0.00013809,2]
[392851852,1762059937044,150.0,0.00013916,2]
[392851853,1762059937114,150.0,0.00014023,2]
[392851854,1762059937352,150.0,0.0001413,2]
[392851855,1762059937403,150.0,0.00014237,2]
[392851856,1762059937440,150.0,0.00014344,2]
[392851857,1762059937479,150.0,0.00014451,2]
[392851858,1762059937519,150.0,0.00014558,2]
[392851859,1762059937568,150.0,0.00014665,2]
[392851860,1762059962159,150.0,0.00014665,2]
[392851861,1762059962305,595.4402,0.00014566,2]
[392851863,1762059974790,2500.0,0.00014566,2]
[392851864,1762059982097,835.49625945,0.00013858,2]
[392851865,1762059982123,10000.01,0.00013858,2]
[392851866,1762059982148,10000.01,0.00013858,2]
[392851867,1762059982173,2540.08374055,0.00013858,2]
[392851868,1762060021156,300.0,0.00014665,2]
[392851869,1762060025152,151.0,0.00014666,2]
[392851870,1762060025745,159.23727129,0.00014666,2]
[392851871,1762060036424,620.0,0.00014666,2]
[392851872,1762060042852,496.47127164,0.00014666,2]
[392851873,1762060045559,3376.7891,0.00014566,2]
[392851874,1762060047417,151.0,0.00014666,2]
[392851875,1762060048094,151.0,0.00014666,2]
[392851876,1762060048835,151.0,0.00014666,2]
[392851877,1762060049438,151.0,0.00014666,2]
[392851878,1762060050187,151.0,0.00014666,2]
[392851879,1762060050815,151.0,0.00014666,2]
[392851880,1762060051512,151.0,0.00014666,2]
[392851881,1762060051895,185.69533745,0.00014666,2]
[392851882,1762060052017,151.0,0.00014666,2]
[392851883,1762060059251,260.00576,0.0001462,2]
[392851884,1762060076479,6416.92561857,0.00013849,2]
[392851885,1762060081721,-2125.80561857,0.00013849,2]
[392851886,1762060081976,-4251.61123714,0.00013849,2]
[392851887,1762060082093,-1496.78752572,0.00013849,2]
[392851888,1762060082125,-293.56118584,0.00014566,2]
[392851889,1762060082157,-166.23171831,0.00014566,2]
[392851890,1762060082189,-293.56118581,0.00014614,2]
[392851891,1762060088052,293.56118581,0.00014661,2]
[392851896,1762060134758,244.0,0.00014303,2]
[392851897,1762060137494,2751.0,0.00013847,2]
[392851901,1762060141559,300.0,0.00014665,2]
[392851902,1762060142671,150.0,0.00014665,2]
[392851903,1762060143583,1761.16558283,0.00014566,2]
[392851904,1762060143608,738.83441717,0.00014566,2]
[392851905,1762060147156,500.0,0.00014,2]
[392851906,1762060147206,456.44,0.00014,2]
[392851907,1762060148002,500.0,0.00014,2]
[392851908,1762060148808,159.52,0.00014,2]
[392851910,1762060150761,500.0,0.0001399,2]
[392851911,1762060151562,500.0,0.00014665,2]
[392851914,1762060158814,500.0,0.0001399,2]
[392851915,1762060174636,500.0,0.00013356,2]
[392851916,1762060201482,300.0,0.00014665,2]
[392851917,1762060201523,1200.0,0.00014665,2]
[392851918,1762060206143,4145.21558283,0.00014656,2]
[392851919,1762060206169,2357.42441717,0.00014656,2]
[392851920,1762060215687,391.82,0.00014,2]
[392851921,1762060217690,5648.0036763,0.000146,2]
[392851937,1762060231858,-373.89329979,0.00014666,2]
[392851983,1762060238073,-250.0,0.00014666,2]
[392852104,1762060240239,-1170.3795753,0.00014666,2]
[392852105,1762060240250,-623.85962557,0.00014666,2]
[392852114,1762060243091,-381093.97646313,0.00014666,2]
[392852115,1762060243102,-1000.0,0.00014666,2]
[392852116,1762060243111,-151.0,0.00014666,2]
[392852117,1762060243122,-307.92082251,0.00014666,2]
[392852118,1762060243133,-319.0,0.0001467,2]
[392852119,1762060243143,-500.0,0.00014673,2]
[392852120,1762060243152,-165.80730958,0.00014673,2]
[392852121,1762060243162,-500.0,0.00014673,2]
[392852122,1762060243172,-502.25275937,0.00014673,2]
[392852123,1762060243181,-529.18421624,0.00014673,2]
[392852124,1762060243191,-500.0,0.00014673,2]
[392852125,1762060243201,-500.0,0.00014673,2]
[392852127,1762060243210,-500.0,0.00014673,2]
[392852128,1762060243220,-500.0,0.00014673,2]
[392852129,1762060243230,-500.0,0.00014673,2]
[392852130,1762060243240,-500.0,0.00014673,2]
[392852131,1762060243250,-200.07607861,0.00014673,2]
[392852133,1762060243259,-504.16999555,0.00014673,2]
[392852135,1762060243268,-505.34965492,0.00014673,2]
[392852137,1762060243277,-500.0,0.00014673,2]
[392852139,1762060243286,-500.0,0.00014673,2]
[392852140,1762060243295,-500.63268969,0.00014673,2]
[392852142,1762060243305,-500.0,0.00014673,2]
[392852144,1762060243314,-500.0,0.00014673,2]
[392852146,1762060243323,-500.0,0.00014673,2]
[392852148,1762060243332,-500.0,0.00014673,2]
[392852150,1762060243341,-500.83486957,0.00014673,2]
[392852152,1762060243351,-500.0,0.00014673,2]
[392852154,1762060243360,-1425.0,0.00014675,2]
[392852156,1762060243369,-150.0,0.00014676,2]
[392852158,1762060243380,-2625.04877102,0.00014677,2]
[392852160,1762060243389,-166.23171828,0.00014677,2]
[392852162,1762060243398,-1425.0,0.00014678,2]
[392852164,1762060243407,-3780.32,0.00014678,2]
[392852166,1762060243416,-775.59,0.00014678,2]
[392852168,1762060243425,-150.0,0.00014687,2]
[392852170,1762060243434,-150.0,0.00014687,2]
[392852172,1762060243443,-293.56118581,0.00014709,2]
[392852174,1762060243453,-78383.9864043,0.0001471,2]
[392852177,1762060243463,-150.0,0.00014714,2]
[392852179,1762060243476,-2625.04877102,0.00014714,2]
[392852180,1762060243486,-500.0,0.00014726,2]
[392852183,1762060243495,-150.0,0.00014728,2]
[392852185,1762060243504,-159.93048841,0.0001473,2]
[392852186,1762060243515,-150.0,0.00014737,2]
[392852189,1762060243524,-1164.0,0.00014743,2]
[392852190,1762060243534,-1425.0,0.00014744,2]
[392852192,1762060243544,-2625.04877102,0.00014752,2]
[392852195,1762060243554,-7169.5334626,0.00014755,2]
[392852196,1762060243563,-293.56118581,0.00014757,2]
[392852199,1762060243573,-150.0,0.00014759,2]
[392852201,1762060243584,-235.0,0.00014762,2]
[392852203,1762060243593,-52810.6171946,0.00014763,2]
[392852204,1762060243603,-200.0,0.00014766,2]
[392852206,1762060243612,-200.0,0.00014766,2]
[392852208,1762060243621,-694.59836,0.00014766,2]
[392852210,1762060243630,-2560.897,0.00014771,2]